Cogmind - Beta 10.2 @@@ ROGUE MODE // 2021.07.26 @ 22:11:48 Player: Demise Result: Destroyed by G-34 Mercenary with Small Laser Performance ------------- Evolutions (0) 0 Regions Visited (2) 400 Robots Destroyed (31) 155 Value Destroyed (789) 789 Prototype IDs (3) 60 Alien Tech Used (0) 0 Bonus (-703) -703 TOTAL SCORE: 701 Bonus ------- Follower Combat Kills 25 Friendly Fire -728 Cogmind --------- Core Integrity 0/250 Matter 279/300 Energy 275/275 System Corruption 0% Temperature Cool (10) Movement Treading (180) Ox1 Location -10/Mines Parts ------- > --- POWER (1) -------- Deuterium Engine > --- PROPULSION (2) --- Light Treads Light Treads > --- UTILITY (2) ------ Large Storage Unit Large Storage Unit > --- WEAPON (2) ------- Autogun Autogun > --- INVENTORY (16) --- Light Treads Cryofiber Web Structural Scanner Light Armor Plating Hacking Suite Long-range Tractor Beam Autogun Mini Grenade Launcher Mini Grenade Launcher Datajack Mining Laser Peak State ------------ > --- POWER ------------ Light Nuclear Core > --- PROPULSION ------- Light Treads Light Treads > --- UTILITY ---------- Improved Heat Sink Improved Heat Sink > --- WEAPON ----------- Assault Rifle Assault Rifle > --- INVENTORY -------- Medium Storage Unit Light Assault Rifle Light Assault Rifle Grenade Launcher [Rating: 13] Favorites ----------- Power Light Ion Engine Engine Light Ion Engine Power Core Light Nuclear Core Propulsion Light Treads Treads Light Treads Utility Large Storage Unit Device Improved Heat Sink Storage Large Storage Unit Processor Signal Interpreter Weapon Autogun Ballistic Gun Autogun Launcher Grenade Launcher Build | -11 -10 -10 ------- Run | Scr Mat Min Slots Evolved . | . . . Power . | . . . Propulsion . | . . . Utility . | . . . Weapon . | . . . Parts Attached 30 | 4 21 5 Power 3 | . 2 1 Engine 2 | . 1 1 Core 1 | . 1 . Reactor . | . . . Propulsion 6 | 2 2 2 Treads 6 | 2 2 2 Leg . | . . . Wheel . | . . . Hover . | . . . Flight . | . . . Utility 6 | . 5 1 Device 3 | . 3 . Storage 2 | . 1 1 Processor 1 | . 1 . Hackware . | . . . Protection . | . . . Artifact . | . . . Weapon 15 | 2 12 1 Energy Gun . | . . . Energy Cannon . | . . . Ballistic Gun 12 | 2 9 1 Ballistic Cannon . | . . . Launcher 3 | . 3 . Special Weapon . | . . . Impact Weapon . | . . . Slashing Weapon . | . . . Piercing Weapon . | . . . Special Melee Weapon . | . . . Unidentified Prototypes . | . . . Parts Lost 5 | . 4 1 Power 1 | . 1 . Propulsion 1 | . 1 . Utility . | . . . Weapon 3 | . 2 1 Highest Loss Streak 3 | . 3 1 Average Slot Usage (%) 88 | . 81 99 Engine 9 | . 7 13 Treads 21 | . 18 28 Device 4 | . 6 . Storage 14 | . 11 19 Processor 7 | . 6 8 Ballistic Gun 27 | . 27 27 Naked Turns . | . . . Heaviest Build 47 | 2 26 47 Greatest Support 40 | 3 40 40 Greatest Overweight (x) 1 | . 1 1 Average Overweight (x) . | . . . Largest Inventory Capacity 16 | 4 10 16 Average Capacity 10 | 4 9 12 Most Carried 12 | 2 10 12 Average Carried 8 | 1 7 10 Final Capacity 16 | 4 10 16 Final Carried 11 | 2 10 11 Class Distribution -------------------- 92% | Mutant 7% | Commander-Mutant Dominant Class ---------------- Mutant | -10/Materials Mutant | -10/Mines Resources | -11 -10 -10 ----------- Run | Scr Mat Min Matter Collected 1194 | 250 640 304 Remotely . | . . . Salvage Created 1218 | 92 771 355 Parts 58 | 2 40 16 Haulers Intercepted 2 | . 2 . Recyclers Shooed . | . . . Parts Field Recycled . | . . . Retrieved Matter . | . . . Parts Self-Destructed . | . . . Prevented . | . . . Kills | -11 -10 -10 ------- Run | Scr Mat Min Combat Hostiles Destroyed 24 | . 17 7 Guns 20 | . 13 7 AOE 4 | . 4 . Classes Destroyed 7 | 1 4 2 Builder 1 | . . 1 Hauler 2 | . 2 . Recycler 2 | 1 1 . Watcher 2 | . 2 . Swarmer 3 | . 3 . Grunt 20 | . 14 6 Assembled 1 | . . 1 Best Kill Streak 3 | 1 3 2 Combat Bots Only 3 | . 3 2 Max Kills in Single Turn 1 | 1 1 1 Gunslinging . | . . . Exploded 1 | . 1 . Melee . | . . . Uniques/NPCs Destroyed 1 | . . 1 YI-UF0 (-10/Mines) Combat | -11 -10 -10 -------- Run | Scr Mat Min Damage Taken 1297 | . 943 354 Core 256 | . 214 42 Absorbed by Shields . | . . . Core Remaining (%) 100 | 100 . . Volleys Fired 111 | 5 76 30 Largest 2 | 2 2 2 Hottest 50 | 40 50 46 Shots Fired 216 | 10 147 59 Gun 210 | 10 141 59 Cannon . | . . . Launcher 6 | . 6 . Special . | . . . Kinetic 210 | 10 141 59 Thermal . | . . . Explosive 6 | . 6 . Electromagnetic . | . . . Robot Hit Streak 20 | 5 13 20 Robot Miss Streak 4 | 1 4 2 Penetration Max . | . . . Secondary Targets 2 | . 2 . Max Gunslinging Chain 1 | . 1 . Shots Hit Robots 152 | 7 96 49 Core Hits 59 | 3 41 15 Critical Hits . | . . . Critical Kills . | . . . Critical Parts Destroyed . | . . . Melee Attacks . | . . . Impact . | . . . Slashing . | . . . Piercing . | . . . Sneak Attacks . | . . . Combat Hostiles . | . . . Follow-up Attacks . | . . . Damage Inflicted 2518 | 49 1696 773 Guns 2009 | 49 1187 773 Cannons . | . . . Explosions 509 | . 509 . Melee . | . . . Ramming . | . . . Kinetic 2009 | 49 1187 773 Thermal . | . . . Explosive 509 | . 509 . Electromagnetic . | . . . Impact . | . . . Slashing . | . . . Piercing . | . . . Highest Corruption . | . . . Average Corruption . | . . . Corruption Purged . | . . . Overload Shots . | . . . Overflow Damage 22 | . 22 . Projectiles . | . . . Explosions 22 | . 22 . Melee . | . . . Knockbacks . | . . . Impact . | . . . Kinetic . | . . . Secondary . | . . . Self-Inflicted Damage 6 | . 6 . Shots 1 | . 1 . Rammed . | . . . Targets Rammed . | . . . Kicked . | . . . Crushed . | . . . Highest Temperature 59 | . 12 59 Average Temperature 12 | . 4 16 Received Heat Transfer 618 | . 462 156 Siege Activations . | . . . Robots Corrupted . | . . . Combat Hostiles . | . . . Parts Fried . | . . . Impact Corruptions . | . . . Robots Melted . | . . . Combat Hostiles . | . . . Parts Melted . | . . . Heat Transferred . | . . . Parts Sabotaged . | . . . Parts Stolen . | . . . Parts Stripped . | . . . Power Chain Reactions . | . . . Missiles Intercepted . | . . . Alert | -11 -10 -10 ------- Run | Scr Mat Min Peak Influence 343 | 5 343 83 Initial 8 | . 3 8 Average 94 | 2 134 25 Maximum Alert Level 1 | . 1 . Low Security (%) 86 | 100 78 100 Level 1 13 | . 21 . Level 2 . | . . . Level 3 . | . . . Level 4 . | . . . Level 5 . | . . . High Security . | . . . Max Security . | . . . Squads Dispatched 7 | . 6 1 Investigation 7 | . 6 1 Extermination . | . . . Reinforcement . | . . . Assault . | . . . Garrison . | . . . Intercept . | . . . Construction Impeded . | . . . Haulers Reinforced . | . . . Stealth | -11 -10 -10 --------- Run | Scr Mat Min Distress Signals 1 | . . 1 Communications Jammed . | . . . Distress Signals . | . . . Times Spotted 41 | . 32 9 Peak Tracking Total 4 | . 4 2 Tactical Retreats 3 | . 3 . Traps | -11 -10 -10 ------- Run | Scr Mat Min Traps Triggered 4 | . 4 . Indirectly . | . . . Trap Hack Attempts . | . . . Triggered . | . . . Disarmed . | . . . Reprogrammed . | . . . Reused . | . . . Traps Extracted . | . . . Installed . | . . . Triggered . | . . . Machines | -11 -10 -10 ---------- Run | Scr Mat Min Machines Disabled . | . . . Max in Single Turn . | . . . Machines Sabotaged . | . . . Garrisons Compromised . | . . . Overloaded Fab Kills . | . . . Fab Network Shutdowns . | . . . Hacking | -11 -10 -10 --------- Run | Scr Mat Min Machines Accessed 12 | . 11 1 Terminals 8 | . 8 . Fabricators . | . . . Repair Stations 1 | . 1 . Recycling Units 2 | . 2 . Scanalyzers . | . . . Garrison Access . | . . . Total Hacks 42 | . 41 1 Successful 28 | . 27 1 Failed 14 | . 14 . Catastrophic 2 | . 2 . Database Lockouts . | . . . Manual 28 | . 28 . Terminals 30 | . 30 . Fabricators . | . . . Repair Stations 2 | . 2 . Recycling Units 9 | . 9 . Scanalyzers . | . . . Garrison Access . | . . . Terminal Hacks 10 | . 9 1 Part Schematic 2 | . 2 . Robot Analysis 3 | . 3 . Prototype ID Bank 2 | . 2 . Open Door 1 | . . 1 Branch Access Points 1 | . 1 . Terminal Index 1 | . 1 . Fabricator Hacks . | . . . Repair Station Hacks 2 | . 2 . Scan Component 1 | . 1 . Repair 1 | . 1 . Recycling Unit Hacks 3 | . 3 . Retrieve Matter 1 | . 1 . Retrieve Components 2 | . 2 . Scanalyzer . | . . . Garrison Access Hacks . | . . . Unauthorized Hacks 13 | . 13 . Terminals 9 | . 9 . Track 1 | . 1 . Assimilate 1 | . 1 . Botnet 6 | . 6 . Operators 1 | . 1 . Fabricators . | . . . Repair Stations . | . . . Recycling Units 4 | . 4 . Reject 1 | . 1 . Recyclers 1 | . 1 . Mask 1 | . 1 . Tunnel 1 | . 1 . Scanalyzers . | . . . Garrison Access . | . . . Data Cores Recovered . | . . . Used . | . . . Hacking Detections 9 | . 9 . Full Trace Events 6 | . 6 . Feedback Events . | . . . Feedback Blocked . | . . . Robot Schematics Acquired . | . . . Robots Built . | . . . Matter . | . . . Time . | . . . Total Robot Build Rating . | . . . Part Schematics Acquired 2 | . 2 . Parts Built . | . . . Matter . | . . . Time . | . . . Total Part Build Rating . | . . . Parts Repaired 1 | . 1 . Time 26 | . 26 . Parts Recycled . | . . . Recycled Matter . | . . . Retrieved Matter 159 | . 159 . Retrieved Components 9 | . 9 . Parts Scanalyzed . | . . . Part Schematics Acquired . | . . . Parts Damaged . | . . . Bothacking | -11 -10 -10 ------------ Run | Scr Mat Min Used RIF Installer . | . . . Robots Hacked . | . . . Non-combat . | . . . Combat . | . . . Robot Hacks Applied . | . . . Relay Couplers Released . | . . . Robots Rewired . | . . . Allies Hacked . | . . . Hacks Repelled . | . . . Allies | -11 -10 -10 -------- Run | Scr Mat Min Total Allies 4 | . 1 3 Largest Group 4 | . 1 4 Highest-Rated Group 50 | . 10 50 Highest-Rated Ally 16 | . 10 16 Total Orders 3 | . . 3 STAY 2 | . . 2 FOLLOW 1 | . . 1 Ally Attacks 1 | . . 1 Total Damage 14 | . . 14 Kills 1 | . . 1 Allies Corrupted . | . . . Allies Melted . | . . . Intel | -11 -10 -10 ------- Run | Scr Mat Min Robot Analysis Total 3 | . 3 . Derelict Logs Recovered 1 | . . 1 Drone Launches . | . . . Drone Recoveries . | . . . Exploration | -11 -10 -10 ------------- Run | Scr Mat Min Turns Passed 2615 | 37 1670 908 Spaces Moved 1305 | 32 870 403 Core 145 | 32 113 . Treads 1160 | . 757 403 Legs . | . . . Wheels . | . . . Hover . | . . . Flight . | . . . Fastest Speed 50 | 50 50 160 Average Speed 158 | 50 157 169 Slowest Speed 180 | 50 180 180 Overloaded Moves . | . . . Propulsion Burnouts . | . . . Robots Hopped . | . . . Cave-ins Triggered . | . . . Exploration Rate (%) 52 | 3 97 56 Regions Visited 2 Branch Regions 1 Pre-discovered Areas 1 | . 1 . Known Exits Taken 1 | . 1 . Unknown Exits Taken 1 | 1 . . Scrap Searched 1 | . . 1 Spaces Dug . | . . . Terrain Destroyed 53 | . 53 . Melee . | . . . Projectile . | . . . AOE 53 | . 53 . Terrain Rammed . | . . . Walls Destroyed . | . . . Machines Disabled . | . . . Actions | -11 -10 -10 --------- Run | Scr Mat Min Total 1662 | 42 1035 585 Wait 188 | . 52 136 Move 1303 | 31 869 403 Hop . | . . . Pick Up 17 | 2 10 5 Fast Attach 14 | 4 9 1 Attach 4 | . 2 2 Detach 3 | . 2 1 Swap 12 | . 10 2 Drop 10 | . 5 5 Fire 111 | 5 76 30 Melee . | . . . Ram . | . . . Kick . | . . . Crush . | . . . Escape Stasis . | . . . Rewire . | . . . Trap . | . . . Miscellaneous . | . . . Route ------- -11/Scrapyard -10/Materials (discovered 4 exits: *Mat x3 / *Min) -10/Mines History --------- Turn | Location | Event 8 | -11/Scrapyard | Discovered new exit (range 14) 38 | -11/Scrapyard | Entered Materials 77 | -10/Materials | Discovered new exit (range 11) 206 | -10/Materials | Core integrity fell below 50% 300 | -10/Materials | Build established: Mutant 432 | -10/Materials | Core integrity fell below 20% 442 | -10/Materials | Lost 3 parts (1n2w) 826 | -10/Materials | Discovered new exit (range 8) 895 | -10/Materials | Identified exit to Materials 1017 | -10/Materials | Discovered exit to Materials (range 15) 1193 | -10/Materials | Discovered exit to Materials (range 10) 1385 | -10/Materials | Identified exit to Mines 1664 | -10/Materials | Repaired Lgt. Treads 1708 | -10/Materials | Entered Mines 1708 | -10/Mines | Accompanied by 1 ally 1756 | -10/Mines | Assisted by bots powering up and referring to "LRC-V3" 1809 | -10/Mines | Met a Derelict shopkeep closing up shop 1931 | -10/Mines | YI-UF0 nonchalantly dropped a Grenade Launcher on the ground 1938 | -10/Mines | Excavation squad dispatched 1938 | -10/Mines | A large section of the Mines collapsed 1938 | -10/Mines | Destroyed YI-UF0 2188 | -10/Mines | Excavation squad dispatched 2438 | -10/Mines | Excavation squad dispatched 2450 | -10/Mines | Learned Materials terminal intel 2616 | -10/Mines | Destroyed by G-34 Mercenary with Small Laser Last Messages --------------- 02266_ U-05 Engineer lays Concrete. 02293_ Acquired Lgt. Treads. 02305_ Acquired Mining Laser. 02359_ G-34 Mercenary destroyed. 02366_ Acquired 5 matter. 02376_ Acquired 14 matter. 02380_ Acquired 5 matter. 02392_ G-34 Mercenary destroyed. 02400_ Acquired 16 matter. 02438_ ALERT: Derelict activity in mines confirmed. Dispatching additional escorted excavation squad. 02450_ Acquired derelict log, extracted data. Data stored: Materials terminal intel. 02588_ G-34 Mercenary destroyed. 02598_ Acquired 8 matter. 02602_ G-34 Mercenary destroyed. 02603_ Acquired 8 matter. 02609_ Autogun destroyed. 02610_ Acquired 4 matter. 02612_ Acquired 5 matter. Map ----- +----------------------------------------------------+ | ??????# ### #??????????## #???????? | | ??????# #?# #?????????## #?????? | | ??????## ##?# #????????## ##### | | ##?????### ##??# #????????# | | # ##?????# #?### #???????## ## # | | # ##????# ### #??????## % ### #???? | | # #????# ## #??????# ## ##?? #???? | | # ##???# # #??????#" #?## #???? #???? | | # ###?# #?????## #??## ##????? ???? | | ## #### ##???## #???#!##???????#??? | | ?## ### #???# #????#=#???????????? | | ??## ##### #???# " " #????# #???????????? | | ???# """ ##?## ##?## * ###### #???????????? | | ???# """ ##?## ### ! ! ! #???????????? | | ???# """ ##### " [ *%=%% #???????????? | | ???# ### " " = ## #???????????? | | ???## ## #?## ## "#???????????? | | ????## ### #??## "" ### "#???????????? | | ?????## ##?# #???##" " ## ##?# [#???????????? | | ??########?## ####?########## #??#!%#???????????? | | ?## ###### ##?????????# #### *#???????????? | | ## ##?####???# #???????????? | | # ### ##??### ## ##??????????? | | # #### ### t #???## ## #??????????? | | # #??# ##?## =##### ###????????? | | #??# ##??### t@!%gt #??? | | #??# ##???## ##### ###### #?? | | # #??# #????#t #???## ###????????? #?? | | #### #??## #????# #????####???????????????? | | ???## #???## #???## #??????????????????????? | | ???## #????# #???# ?????????????????????? | | ???# #????# #??# ????????????????????? | | ???# #???## #?# ???????????????????? | | ???## #?????# #?## #???????????????????? | | ????## ##??????# ##???# ##???????????????????? | | ?????####????????###?????####????????????????????? | | ?????????????????????????????????????????????????? | | ?????????????????????????????????????????????????? | | ?????????????????????????????????????????????????? | | | | | | | | | | | | | | | | | | | | | | | +----------------------------------------------------+ Best States ------------- Heat Dissipation 53 Energy Generation 14 Energy Capacity 275 Matter Stores 300 Matter Capacity 300 Sight Range 16 Terrain Scan Density 10 Evasion (%) 50 Recoil Reduction 2 Item Schematics ----------------- Hcp. Storage Unit | -10/Materials | Hacked Med. Storage Unit | -10/Materials | Hacked Robot Schematics ------------------ None Fabricated ------------ Nothing Alien Tech Used ----------------- None Achievements -------------- None Challenges ------------ None Game ------ Seed WeldingStealthMapper Manual? 0 Play Time 00:19:42 Cumulative 422.8 hours Start 2021.07.26 @ 19:53:26 End 2021.07.26 @ 22:11:48 Sessions 3 Manual Loads 0 Difficulty Rogue Special Mode None Game No. 344 Rogue 344 Adventurer 0 Explorer 0 Win Type - Total 1 Types 0/0/0/1/0/0/0/0/0 Lore% 71 Gallery% 81 Achievement% 60 Wizard Run 0 Options --------- ASCII 0 Keyboard 1 Movement Numpad Keybinds 0 Fullscreen 1 Font 12/Terminus Map View 83x54 Tactical HUD 1 Map Filters NONE Filters NONE Steam 1 RUN: f5061966-85e7-4982-a278-4b6b1af0a64a